Workbook

Sheet Лист1
I4: R | J4: kd
H5: λ | I5: 1000000 | J5: 0.001 | K5: =lambda(I5,J5,0.00000001) -> 0.01994346476 | M5: 0.01994346775 | N5: =1/SQRT(M5)+2*LOG10(2.51/I5/SQRT(M5)+J5/3.7) -> -3.415754737e-07
C6: x | D6: 1/√λ
C7: a | D7: 2,51/R
C8: b | D8: k/3,7/d
I9: d | J9: kd
D10: a | F10: b | I10: 1e-08 | J10: =E11 -> 1e-05 | K10: =J10+($E$12-$E$11)/9 -> 0.005564444444 | L10: =K10+($E$12-$E$11)/9 -> 0.01111888889 | M10: 0.01667333333 | N10: 0.02222777778 | O10: 0.02778222222 | P10: 0.03333666667 | Q10: 0.03889111111 | R10: 0.04444555556 | S10: 0.05
C11: 4000 | D11: =2.51/C11 -> 0.0006275 | E11: 1e-05 | F11: =E11/3.7 -> 2.702702703e-06 | H11: R | I11: =C11 -> 4000 | J11: =lambda($I11,J$10,$I$10) -> 0.03991716719 | K11: =lambda($I11,K$10,$I$10) -> 0.04522365808 | L11: 0.05001416922 | M11: 0.05444083548 | N11: 0.05859805346 | O11: 0.06254814482 | P11: 0.06633441114 | Q11: 0.0699881978 | R11: 0.07353298807 | S11: 0.07698683214
C12: 100000000 | D12: =2.51/C12 -> 2.51e-08 | E12: 0.05 | F12: =E12/3.7 -> 0.01351351351 | I12: =I11+10000 -> 14000 | J12: =lambda($I12,J$10,$I$10) -> 0.0283156991 | K12: 0.03662944841 | L12: 0.04296200228 | M12: 0.04834791231 | N12: 0.05316703081 | O12: 0.05760482931 | P12: 0.06176717138 | Q12: 0.0657208333 | R12: 0.06951095343 | S12: 0.07316962385
I13: =I12+10000 -> 24000 | J13: 0.02478630686 | K13: 0.0346784997 | L13: 0.04152503347 | M13: 0.04717325926 | N13: 0.0521542201 | O13: 0.0567029891 | P13: 0.060946733 | Q13: 0.06496297407 | R13: 0.06880286741 | S13: 0.07250220442
I14: 34000 | J14: 0.02283601046 | K14: 0.03379132795 | L14: 0.04089963675 | M14: 0.04667131281 | N14: 0.05172565889 | O14: 0.05632366896 | P14: 0.06060304976 | Q14: 0.06464640474 | R14: 0.06850773001 | S14: 0.07222446489
I15: 44000 | J15: 0.02153340101 | K15: 0.03328157949 | L15: 0.04054907846 | M15: 0.04639261198 | N15: 0.05148886061 | O15: 0.05611470556 | P15: 0.06041407633 | Q15: 0.06447258902 | R15: 0.06834583616 | S15: 0.07207223558
I16: 54000 | J16: 0.02057498121 | K16: 0.03295004988 | L16: 0.04032470846 | M16: 0.04621527719 | N16: 0.05133863974 | O16: 0.05598237181 | P16: 0.06029453993 | Q16: 0.06436271715 | R16: 0.0682435689 | S16: 0.07197612238
I17: 64000 | J17: 0.01982683802 | K17: 0.03271700239 | L17: 0.04016874552 | M17: 0.04609250498 | N17: 0.05123484468 | O17: 0.05589103079 | P17: 0.06021209955 | Q17: 0.06428699732 | R17: 0.06817311049 | S17: 0.07190991259
I18: 74000 | J18: 0.019219028 | K18: 0.03254414797 | L18: 0.04005404139 | M18: 0.04600246859 | N18: 0.05115882444 | O18: 0.05582420301 | P18: 0.06015181208 | Q18: 0.06423163652 | R18: 0.06812162066 | S18: 0.07186153841
I19: 84000 | J19: 0.01871075583 | K19: 0.03241080999 | L19: 0.03996612501 | M19: 0.04593360662 | N19: 0.05110075998 | O19: 0.05577318525 | P19: 0.06010580683 | Q19: 0.06418939924 | R19: 0.06808233595 | S19: 0.07182464838
I20: =I19+($C$12-$C$11)/9 -> 11194666.67 | J20: 0.008918787479 | K20: 0.03138328791 | L20: 0.03930590677 | M20: 0.04542083693 | N20: 0.05067007017 | O20: 0.05539565897 | P20: 0.05976589155 | Q20: 0.06387769651 | R20: 0.06779266596 | S20: 0.07155273676
